Cogmind - Beta 13 @@@ ROGUE MODE // 2024.04.10 @ 09:47:12 Player: iwantthegold Result: Destroyed by P-60 Hacker with Shock Rifle Performance ------------- Evolutions (3) 1500 Regions Visited (4) 800 Robots Destroyed (47) 235 Value Destroyed (1468) 1468 Prototype IDs (3) 60 Alien Tech Used (0) 0 Bonus (0) 0 TOTAL SCORE: 4063 Bonus ------- None Cogmind --------- Core Integrity 0/700 Matter 250/300 Energy 100/100 System Corruption 13% Temperature Cool (3) Movement Flying (40) Location -7/Factory Parts ------- > --- POWER (1) -------- (None) > --- PROPULSION (4) --- Faulty Aerolev Unit Xenon Bombardment Thruster > --- UTILITY (4) ------ Small Storage Unit > --- WEAPON (4) ------- (None) > --- INVENTORY (8) ---- Heat Sink Recalibrator Hammer Peak State ------------ > --- POWER ------------ Light Ion Engine > --- PROPULSION ------- Armored Treads Compact Wheel Gravmag System > --- UTILITY ---------- Small Storage Unit Large Storage Unit Transmission Jammer Hardened Medium Armor Plating > --- WEAPON ----------- Particle Gun Pulse Rifle Light Assault Rifle Enhanced Autogun > --- INVENTORY -------- Light Ion Engine Heat Sink Small Storage Unit Structural Scanner Hacking Suite Recalibrator EM Pulse Gun Shock Rifle Small Laser Particle Gun Particle Cannon Hammer [Rating: 30] Favorites ----------- Power Light Ion Engine Engine Light Ion Engine Power Core Enhanced Nuclear Core Propulsion Aluminum Leg Treads Armored Treads Leg Aluminum Leg Wheel Compact Wheel Hover Unit Gravmag System Flight Unit Cesium-ion Thruster Utility Large Storage Unit Device Structural Scanner Storage Large Storage Unit Protection Hardened Medium Armor Plating Weapon Assault Rifle Energy Gun Particle Gun Energy Cannon Particle Cannon Ballistic Gun Assault Rifle Ballistic Cannon Light Cannon Launcher Shock Bomb Launcher Impact Weapon Hammer Build | -11 -10 -9 -8 -7 ------- Run | Yrd Mat Mat Mat Fac Slots Evolved 6 | . . 2 2 2 Power . | . . . . . Propulsion 2 | . . 1 1 . Utility 2 | . . 1 1 . Weapon 2 | . . . . 2 Parts Attached 76 | 6 5 7 35 23 Power 11 | 1 1 . 6 3 Engine 10 | 1 1 . 6 2 Core 1 | . . . . 1 Reactor . | . . . . . Propulsion 27 | 2 . 4 15 6 Treads 1 | . . . . 1 Leg 12 | . . 4 8 . Wheel 4 | 2 . . 1 1 Hover 4 | . . . 1 3 Flight 6 | . . . 5 1 Utility 13 | 1 4 1 4 3 Device 4 | . 2 1 . 1 Storage 7 | 1 2 . 3 1 Processor . | . . . . . Hackware . | . . . . . Protection 2 | . . . 1 1 Artifact . | . . . . . Weapon 25 | 2 . 2 10 11 Energy Gun 10 | . . . 2 8 Energy Cannon 1 | . . . . 1 Ballistic Gun 9 | 2 . 2 3 2 Ballistic Cannon 3 | . . . 3 . Launcher 1 | . . . 1 . Special Weapon . | . . . . . Impact Weapon 1 | . . . 1 . Slashing Weapon . | . . . . . Piercing Weapon . | . . . . . Special Melee Weapon . | . . . . . Unidentified Prototypes 3 | . . . . 3 Corrupted Parts 2 | . . . 1 1 System Corruption 2 | . . . 1 1 Parts Lost 51 | . . 2 27 22 Power 7 | . . . 4 3 Propulsion 18 | . . . 12 6 Utility 7 | . . . 3 4 Weapon 19 | . . 2 8 9 Highest Loss Streak 17 | . . 1 7 17 To Critical Strikes 1 | . . . . 1 Average Slot Usage (%) 82 | . 93 99 84 71 Engine 7 | . 14 11 5 5 Leg 9 | . . 32 18 . Wheel 8 | . 28 . 2 5 Hover 2 | . . . . 6 Flight 1 | . . . 4 . Device 6 | . 2 11 8 5 Storage 17 | . 19 22 20 14 Protection 4 | . . . 6 5 Energy Gun 8 | . . . 5 16 Ballistic Gun 11 | . 28 21 6 5 Ballistic Cannon 1 | . . . 5 . Naked Turns 44 | . . . . 44 Heaviest Build 50 | 12 39 40 50 47 Greatest Support 40 | 26 26 30 40 20 Greatest Overweight (x) 15 | . 1 1 15 15 Average Overweight (x) 1 | . . 1 2 2 Largest Inventory Capacity 15 | 8 15 15 15 15 Average Capacity 13 | 6 9 15 15 14 Most Carried 15 | 6 15 15 15 13 Average Carried 10 | 4 8 12 12 8 Final Capacity 15 | 8 15 15 15 8 Final Carried 15 | 6 15 15 11 3 Class Distribution -------------------- 49% | Mutant 29% | Scavenger-Tank 21% | Scavenger-Mutant Dominant Class ---------------- Mutant | -10/Materials Mutant | -9/Materials Scavenger-Mutant | -8/Materials Scavenger-Tank | -7/Factory Resources | -11 -10 -9 -8 -7 ----------- Run | Yrd Mat Mat Mat Fac Matter Collected 1460 | 241 242 284 447 246 Remotely . | . . . . . Salvage Created 1803 | . 250 284 978 291 Parts 94 | . 15 11 53 15 Haulers Intercepted . | . . . . . Recyclers Shooed 2 | . . 1 . 1 Parts Field Recycled . | . . . . . Retrieved Matter . | . . . . . Parts Self-Destructed . | . . . . . Prevented . | . . . . . Kills | -11 -10 -9 -8 -7 ------- Run | Yrd Mat Mat Mat Fac Combat Hostiles Destroyed 41 | . 8 6 21 6 Guns 31 | . 8 6 12 5 Cannons 7 | . . . 6 1 AOE 3 | . . . 3 . Classes Destroyed 6 | . 2 . 3 1 Builder 2 | . . . 1 1 Recycler 4 | . . . 3 1 Swarmer 13 | . 3 . 8 2 Grunt 19 | . 5 6 8 . Sentry 5 | . . . 5 . Programmer 4 | . . . . 4 Best Kill Streak 8 | . 2 3 8 2 Combat Bots Only 3 | . 2 3 3 2 Max Kills in Single Turn 1 | . 1 1 1 1 Gunslinging . | . . . . . Exploded 1 | . . . 1 . Melee . | . . . . . Uniques/NPCs Destroyed . | . . . . . Combat | -11 -10 -9 -8 -7 -------- Run | Yrd Mat Mat Mat Fac Hostile Shots Fired 513 | . 40 58 203 212 Missed 141 | . 18 11 49 63 Damage Taken 5857 | . 246 581 2487 2543 Core 1387 | . 62 94 520 711 Absorbed by Shields . | . . . . . Redirected to Shielding 41 | . . . 41 . Core Remaining (%) 64 | 100 75 76 5 . Volleys Fired 165 | . 26 42 70 27 Largest 4 | . 2 2 2 4 Hottest 216 | . 40 40 134 216 Shots Fired 338 | . 52 79 123 84 Gun 290 | . 52 79 84 75 Cannon 43 | . . . 34 9 Launcher 5 | . . . 5 . Special . | . . . . . Kinetic 234 | . 52 79 81 22 Thermal 95 | . . . 37 58 Explosive . | . . . . . Electromagnetic 9 | . . . 5 4 Robot Hit Streak 14 | . 6 13 12 14 Robot Miss Streak 10 | . 10 3 3 4 Penetration Max . | . . . . . Secondary Targets 3 | . . 1 2 . Max Gunslinging Chain 1 | . . 1 1 . Shots Hit Robots 211 | . 28 54 78 51 Core Hits 88 | . 12 15 46 15 Critical Kills . | . . . . . Critical Parts Destroyed . | . . . . . Critical Strikes 2 | . . . 1 1 Burn 1 | . . . . 1 Blast 1 | . . . 1 . Melee Attacks 2 | . . . 2 . Impact 2 | . . . 2 . Slashing . | . . . . . Piercing . | . . . . . Sneak Attacks . | . . . . . Combat Hostiles . | . . . . . Follow-up Attacks . | . . . . . Damage Inflicted 3376 | . 364 671 1478 863 Guns 2596 | . 364 671 788 773 Cannons 502 | . . . 412 90 Explosions 278 | . . . 278 . Melee . | . . . . . Ramming . | . . . . . Kinetic 1948 | . 364 671 771 142 Thermal 1223 | . . . 542 681 Explosive . | . . . . . Electromagnetic 205 | . . . 165 40 Impact . | . . . . . Slashing . | . . . . . Piercing . | . . . . . Highest Corruption 13 | . 2 . 13 13 Average Corruption 4 | . 2 . 11 3 Corruption Purged . | . . . . . Corruption Blocked . | . . . . . Effects 50 | . 11 . 14 25 Message Errors 16 | . 3 . 3 10 Matter Fused 12 | . 3 . 5 4 Heat Flow Errors 1 | . . . 1 . Energy Discharges 6 | . 1 . 2 3 Parts Rejected 1 | . . . 1 . Data Loss (minor) 7 | . 1 . 2 4 Data Loss (major) 3 | . 3 . . . Alerts 1 | . . . . 1 Misdirections 3 | . . . . 3 Overload Shots . | . . . . . Overflow Damage 34 | . . . 34 . Projectiles 24 | . . . 24 . Explosions 10 | . . . 10 . Melee . | . . . . . Knockbacks 4 | . . . 4 . Impact . | . . . . . Kinetic 4 | . . . 4 . Secondary . | . . . . . Self-Inflicted Damage 110 | . . . 110 . Shots 4 | . . . 4 . Rammed . | . . . . . Targets Rammed . | . . . . . Kicked . | . . . . . Crushed . | . . . . . Highest Temperature 541 | . 6 5 541 446 Average Temperature 166 | . 4 5 163 171 Received Heat Transfer 1191 | . 45 324 810 12 Effects 16 | . . . 11 5 Shutdowns 4 | . . . 2 2 Energy Bleed 2 | . . . 1 1 Interference 2 | . . . . 2 Damage (minor) 1 | . . . 1 . Damage (major) 7 | . . . 7 . Siege Activations . | . . . . . Robots Corrupted . | . . . . . Combat Hostiles . | . . . . . Parts Fried . | . . . . . Impact Corruptions . | . . . . . Robots Melted . | . . . . . Combat Hostiles . | . . . . . Parts Melted 4 | . . . . 4 Heat Transferred 2407 | . . . 1038 1369 Parts Sabotaged . | . . . . . Parts Stolen . | . . . . . Parts Stripped . | . . . . . Power Chain Reactions 2 | . . . 2 . Alert | -11 -10 -9 -8 -7 ------- Run | Yrd Mat Mat Mat Fac Peak Influence 326 | . 240 207 326 101 Initial 87 | . . 41 87 81 Average 101 | . 99 112 191 35 Maximum Alert Level 1 | . 1 1 1 . Low Security (%) 81 | 100 84 99 49 100 Level 1 18 | . 15 . 50 . Level 2 . | . . . . . Level 3 . | . . . . . Level 4 . | . . . . . Level 5 . | . . . . . High Security . | . . . . . Max Security . | . . . . . Squads Dispatched 5 | . 2 . . 3 Investigation . | . . . . . Extermination 3 | . . . . 3 Reinforcement 2 | . 2 . . . Assault . | . . . . . Garrison . | . . . . . Intercept . | . . . . . Searches Triggered . | . . . . . Construction Impeded . | . . . . . Haulers Reinforced . | . . . . . Active Scanning Responses . | . . . . . Cargo Convoy Interrupts . | . . . . . Stealth | -11 -10 -9 -8 -7 --------- Run | Yrd Mat Mat Mat Fac Distress Signals 9 | . 2 1 5 1 Communications Jammed 50 | . . . . 50 Distress Signals 50 | . . . . 50 Times Spotted 79 | . 16 13 33 17 Peak Tracking Total 7 | . 3 4 7 6 Tactical Retreats 11 | . 3 1 5 2 Traps | -11 -10 -9 -8 -7 ------- Run | Yrd Mat Mat Mat Fac Traps Triggered 2 | . 2 . . . Indirectly . | . . . . . Trap Hack Attempts . | . . . . . Triggered . | . . . . . Disarmed . | . . . . . Reprogrammed . | . . . . . Reused . | . . . . . Traps Extracted . | . . . . . Installed . | . . . . . Triggered 1 | . . . 1 . Machines | -11 -10 -9 -8 -7 ---------- Run | Yrd Mat Mat Mat Fac Machines Disabled 1 | . . . 1 . Max in Single Turn 1 | . . . 1 . Machines Repaired . | . . . . . Machines Dismantled . | . . . . . Machines Sabotaged . | . . . . . Overloaded Fab Kills . | . . . . . Hacking | -11 -10 -9 -8 -7 --------- Run | Yrd Mat Mat Mat Fac Machines Accessed 8 | . 4 1 . 3 Terminals 6 | . 4 . . 2 Fabricators . | . . . . . Repair Stations 1 | . . 1 . . Recycling Units . | . . . . . Scanalyzers 1 | . . . . 1 Garrison Access . | . . . . . Total Hacks 14 | . 7 2 . 5 Successful 7 | . 3 1 . 3 Failed 7 | . 4 1 . 2 Catastrophic . | . . . . . Database Lockouts . | . . . . . Manual . | . . . . . Terminals 10 | . 7 . . 3 Fabricators . | . . . . . Repair Stations 2 | . . 2 . . Recycling Units . | . . . . . Scanalyzers 2 | . . . . 2 Garrison Access . | . . . . . Terminal Hacks 4 | . 3 . . 1 Open DSF 1 | . . . . 1 Terminal Index 1 | . 1 . . . Unreport Threat 1 | . 1 . . . Locate Traps 1 | . 1 . . . Fabricator Hacks . | . . . . . Repair Station Hacks 1 | . . 1 . . Scan Component 1 | . . 1 . . Recycling Unit Hacks . | . . . . . Scanalyzer 2 | . . . . 2 Insert Component 1 | . . . . 1 Analyze 1 | . . . . 1 Garrison Access Hacks . | . . . . . Unauthorized Hacks . | . . . . . Terminals . | . . . . . Fabricators . | . . . . . Repair Stations . | . . . . . Recycling Units . | . . . . . Scanalyzers . | . . . . . Garrison Access . | . . . . . Data Cores Recovered . | . . . . . Used . | . . . . . Hacking Detections 2 | . 1 . . 1 Full Trace Events . | . . . . . Feedback Events . | . . . . . Feedback Blocked . | . . . . . Robot Schematics Acquired . | . . . . . Robots Built . | . . . . . Authchips . | . . . . . Time . | . . . . . Total Robot Build Rating . | . . . . . Part Schematics Acquired 1 | . . . . 1 Parts Built . | . . . . . Authchips . | . . . . . Time . | . . . . . Total Part Build Rating . | . . . . . Parts Repaired . | . . . . . Time . | . . . . . Parts Recycled . | . . . . . Recycled Matter . | . . . . . Retrieved Matter . | . . . . . Retrieved Components . | . . . . . Parts Scanalyzed 1 | . . . . 1 Part Schematics Acquired 1 | . . . . 1 Parts Damaged . | . . . . . Bothacking | -11 -10 -9 -8 -7 ------------ Run | Yrd Mat Mat Mat Fac Used RIF Installer . | . . . . . Robots Hacked . | . . . . . Non-combat . | . . . . . Combat . | . . . . . Robot Hacks Applied . | . . . . . Relay Couplers Released . | . . . . . Fabnet Peak Effective % . | . . . . . Robots Rewired . | . . . . . Allies Hacked . | . . . . . Hacks Repelled . | . . . . . Allies | -11 -10 -9 -8 -7 -------- Run | Yrd Mat Mat Mat Fac Total Allies . | . . . . . Largest Group . | . . . . . Highest-Rated Group . | . . . . . Highest-Rated Ally . | . . . . . Total Orders . | . . . . . Ally Attacks . | . . . . . Total Damage . | . . . . . Kills . | . . . . . Allies Corrupted . | . . . . . Allies Melted . | . . . . . Intel | -11 -10 -9 -8 -7 ------- Run | Yrd Mat Mat Mat Fac Robot Analysis Total . | . . . . . Derelict Logs Recovered . | . . . . . Drone Launches . | . . . . . Drone Recoveries . | . . . . . Exploration | -11 -10 -9 -8 -7 ------------- Run | Yrd Mat Mat Mat Fac Turns Passed 3323 | 62 569 325 1034 1333 Spaces Moved 1390 | 52 434 103 300 501 Core 153 | 3 . . 8 142 Treads 85 | . . . . 85 Legs 310 | . . 99 211 . Wheels 536 | 49 434 4 17 32 Hover 193 | . . . 21 172 Flight 113 | . . . 43 70 Fastest Speed 40 | 50 90 105 120 40 Average Speed 181 | 87 91 186 245 228 Slowest Speed 800 | 90 105 190 800 800 Overloaded Moves . | . . . . . Propulsion Burnouts . | . . . . . Robots Hopped . | . . . . . Cave-ins Triggered 1 | . . . 1 . Exploration Rate (%) 23 | 3 62 11 21 18 Regions Visited 4 Branch Regions . Pre-discovered Areas . | . . . . . Known Exits Taken . | . . . . . Unknown Exits Taken 4 | 1 1 1 1 . Scrap Searched . | . . . . . Spaces Dug 1 | . . . 1 . Terrain Destroyed 7 | . . . 7 . Melee 1 | . . . 1 . Projectile . | . . . . . AOE 6 | . . . 6 . Terrain Rammed . | . . . . . Walls Destroyed . | . . . . . Machines Disabled . | . . . . . Actions | -11 -10 -9 -8 -7 --------- Run | Yrd Mat Mat Mat Fac Total 1890 | 66 556 156 480 632 Wait 176 | . 68 2 38 68 Move 1386 | 51 433 102 299 501 Hop . | . . . . . Pick Up 59 | 9 15 3 22 10 Fast Attach 22 | 3 3 . 8 8 Attach 38 | 3 . 4 18 13 Detach 1 | . . . 1 . Swap 16 | . 2 3 9 2 Drop 25 | . 9 . 13 3 Fire 165 | . 26 42 70 27 Melee 2 | . . . 2 . Ram . | . . . . . Kick . | . . . . . Crush . | . . . . . Escape Stasis . | . . . . . Rewire . | . . . . . Trap . | . . . . . Miscellaneous . | . . . . . Route ------- -11/Scrapyard -10/Materials (discovered 3 exits: *Mat x2 / [*Min]) -9/Materials -8/Materials -7/Factory History --------- Turn | Location | Event 17 | -11/Scrapyard | Discovered new exit (range 13) 63 | -11/Scrapyard | Entered Materials 116 | -10/Materials | Discovered new exit (range 6) 210 | -10/Materials | Discovered new exit (range 3) 325 | -10/Materials | Build established: Mutant 356 | -10/Materials | Discovered new exit (range 12) 632 | -10/Materials | Entered another Materials area 632 | -9/Materials | Evolved 2 slots: Propulsion x1, Utility x1 938 | -9/Materials | Discovered new exit (range 10) 957 | -9/Materials | Entered another Materials area 957 | -8/Materials | Evolved 2 slots: Propulsion x1, Utility x1 1083 | -8/Materials | Lost 5 parts (1p2n2w) 1324 | -8/Materials | Build established: Scavenger-Mutant 1579 | -8/Materials | Lost 7 parts (1p4n2w) 1702 | -8/Materials | Crushed by falling debris 1702 | -8/Materials | Core integrity fell below 50% 1702 | -8/Materials | System corruption reached 10% 1733 | -8/Materials | Lost 7 parts (2p3n1u1w) 1737 | -8/Materials | Build established: Mutant 1767 | -8/Materials | Core integrity fell below 20% 1785 | -8/Materials | Discovered new exit (range 8) 1991 | -8/Materials | Entered Factory 1991 | -7/Factory | Evolved 2 slots: Weapon x2 2011 | -7/Factory | Lost 4 parts (1n1u2w) 2435 | -7/Factory | Build established: Scavenger-Tank 2660 | -7/Factory | Identified exit to DSF 3220 | -7/Factory | Core integrity fell below 50% 3241 | -7/Factory | Lost 17 parts (2p4n4u7w) 3262 | -7/Factory | Core integrity fell below 20% 3265 | -7/Factory | System corruption reached 10% 3324 | -7/Factory | Destroyed by P-60 Hacker with Shock Rifle Last Messages --------------- 03241_ ALERT: Rogue bot located, Programmers report to Factory Zone 3P. 03243_ JHTUCHFNXXXGLDJAPYWUQZMLE:Y 03302_ Connecting with Terminal... 03309_ ALERT: Cargo convoy en route, clear transfer corridor. Map ----- +----------------------------------------------------+ | ?????????????????????????????????????????????????? | | ?????????????????????????????????????????????????? | | ?????????????????????????????????????????????????? | | ?????????????????????????????????????????????????? | | ?????????????????????????????????????????????????? | | ?????????????????????????????????????????????????? | | ?????????????????????????????????????????????????? | | ???????????????????????????????????????????????? | | #?????????????????????????????????????????????? | | #?????????????????????????????????????????????? | | #?????????????????????????????????????????????? | | #?????????????????????????????????????????????? | | #?????????????????????????????????????????????? | | ???????????? ???????????????????????????????? | | #?????????????# ?????????????????????????????? | | #?????????????# ????????????????????????????? | | ######+####/### ????????????????????????????? | | ## # ????????????????????????????? | | ## # ####????????????????????????? | | ## # ????????????????????????? | | ## # #????????????????????????? | | # # ##+#?????????????????????? | | # # #?????????????????????? | | / # "" ###########???????????? | | " # # u"" # #???????????? | | " # # """ @ # #???????????? | | # # """ # #???????????? | | # # """ # """ """ #???????????? | | / + + """ """?????????????? | | #########+#### | # """ ""??????????????? | | #??????# p # ?????????????? | | #??????# p + /????????????? | | #???#### ###################????????????? | | +###???# "" ####???????????????????????????? | | ???????#"""!! """#???????????????????????????? | | ???????#"F !! """#???????????????????????????? | | ???????#""" ! "#???????????????????????????? | | ???????#"""[ "F"#???????????????????????????? | | ???????#""" ! """#???????????????????????????? | | ???????#### ####???????????????????????????? | | ??????????# #??????????????????????????????? | | ??????????# #" "# #??????????????????????????????? | | ??????????# #"Y"# #??????????????????????????????? | | ??????????# #"""# #??????????????????????????????? | | ??????????# ##### #??????????????????????????????? | | ??????????# #???# #??????????????????????????????? | | ??????????# #?### ###????????????????????????????? | | ??????#####+### #????????????????????????????? | | ??????# # #????????????????????????????? | | ??????# + #????????????????????????????? | +----------------------------------------------------+ Best States ------------- Heat Dissipation 35 Energy Generation 14 Energy Capacity 275 Matter Stores 300 Matter Capacity 300 Sight Range 16 Terrain Scan Density 10 Jamming Range 12 Armor Coverage 225 Utility Shielding 33 Evasion (%) 62 Recoil Reduction 1 Item Schematics ----------------- Recalibrator | -7/Factory | Scanalyzed Robot Schematics ------------------ None Fabricated ------------ Nothing Alien Tech Used ----------------- None Achievements -------------- Close Call Universal Adapter Challenges ------------ None Game ------ Seed DataSwarmKatana Manual? 0 Play Time 00:36:38 Cumulative 13.0 hours Start 2024.04.10 @ 09:11:07 End 2024.04.10 @ 09:47:12 Sessions 1 Manual Loads 0 Difficulty Rogue Special Mode None Game No. 15 Rogue 15 Adventurer 0 Explorer 0 Win Type - Total 0 Types 0/0/0/0/0/0/0/0/0 Lore% 2 Gallery% 16 Achievement% 13 Wizard Run 0 Options --------- Layout 1 ASCII 0 Keyboard 0 Movement Mouse Keybinds 0 Fullscreen 1 Font 18/SmallcapsGlow Map View 54x44 Zoom Use 0% Tactical HUD 1 Map Filters NONE Filters NONE Steam 0 RUN: b745326d-336a-4b96-920b-aedc90419cc7